bitfinex-derivatives/quotes_ETHF0:USTF0_20250411
["timestamp","ask_amount","ask_price","bid_price","bid_amount"]
[1744366227288,4.49257,1557.6,1557.5,6.16225]
[1744366227584,1.28473,1557.7,1557.6,1.28477]
[1744366227790,1.28477,1557.6,1557.5,6.16219]
[1744366227985,1.28477,1557.6,1557.5,6.17179953]
[1744366228380,4.49257,1557.6,1557.5,0.00960953]
[1744366228679,3.21286,1557.2,1556.7,9.92489347]
[1744366228883,4.49291,1557.2,1556.8,5.97821921]
[1744366229099,3.2078,1557.2,1556.8,40.8]
[1744366229289,1.28528,1557.0,1556.9,1.28532]
[1744366229584,4.00075,1557.1,1557.0,1.28526]
[1744366230781,2.7155,1557.1,1557.0,1.28526]
[1744366230987,3.2078,1557.2,1557.1,1.28518]
[1744366231488,3.2078,1557.2,1557.1,6.28518]
[1744366231684,3.86143,1557.4,1557.3,1.28501]
[1744366231885,1.28504,1557.3,1557.2,1.28505]
[1744366232288,4.49286,1557.3,1557.2,1.28508]
[1744366232489,3.2078,1557.3,1557.2,1.28508]
[1744366233590,3.2078,1557.3,1557.2,6.28508]
[1744366233795,3.2078,1557.3,1557.2,5.81068]
[1744366234283,3.2078,1557.3,1557.2,10.81068]
[1744366234479,3.16936188,1557.3,1557.2,10.81068]
[1744366234681,3.2078,1557.7,1557.6,1.28477]
[1744366234887,3.19474921,1557.7,1557.5,1.28479]
[1744366235186,3.19474921,1557.7,1557.3,5.91314]
[1744366235389,7.13159921,1557.7,1557.6,1.28477]
[1744366235585,3.19474921,1557.7,1557.6,1.28477]
[1744366235791,3.19474921,1557.7,1557.6,3.98537]
[1744366235991,3.19474921,1557.7,1557.6,6.23107]
[1744366236194,4.47942921,1557.7,1557.6,6.23107]
[1744366236590,7.13152921,1557.7,1557.6,4.9463]
[1744366236888,1.28477,1557.6,1557.5,42.08485]
[1744366237286,7.13159921,1557.7,1557.6,1.28477]
[1744366237485,4.49255,1557.7,1557.6,3.98537]
[1744366237792,1.28475,1557.7,1557.6,3.98537]
[1744366237994,4.49255,1557.7,1557.6,3.98537]
[1744366239894,3.2078,1557.7,1557.6,3.98537]
[1744366240895,4.49248,1557.7,1557.6,2.7006]
[1744366241097,7.12888,1557.7,1557.6,2.7006]
[1744366241791,1.28477,1557.6,1557.5,1.28478]
[1744366241990,3.92117,1557.6,1557.5,1.28478]
[1744366242196,3.2078,1557.7,1557.6,1.28477]
[1744366242391,4.49248,1557.7,1557.6,1.28477]
[1744366242700,1.28485,1557.5,1557.4,4.9862]
[1744366242903,1.28481,1557.6,1557.4,4.9862]
[1744366243089,1.28481,1557.6,1557.5,1.28477]
[1744366243384,1.28481,1557.6,1557.5,3.93937]
[1744366243593,7.12894,1557.7,1557.6,1.28477]
[1744366243792,3.2078,1557.7,1557.6,1.28477]
[1744366243993,0.00960953,1557.8,1557.7,1.28468]
[1744366244189,0.00960953,1557.8,1557.7,6.18548]
[1744366244388,0.00960953,1557.8,1557.7,11.18548]
[1744366247099,9.53e-06,1557.8,1557.7,11.18548]
[1744366247294,15.69782112,1558.3,1558.2,1.28427]
[1744366247502,12.49002112,1558.3,1558.2,1.28427]
[1744366247688,12.49002112,1558.3,1558.2,42.6015099]
[1744366247890,12.49002112,1558.3,1558.2,44.84267]
[1744366248404,4.49181,1558.6,1558.4,1.28404]
[1744366248708,1.28402,1558.5,1558.3,1.28411]
[1744366248892,1.28402,1558.5,1558.2,45.7744]
[1744366248893,2.59,1558.5,1558.2,43.016]
[1744366249202,2.59,1558.5,1558.4,1.28411]
[1744366249793,3.2078,1558.6,1558.5,1.28402]
[1744366250298,4.49174,1558.6,1558.5,1.28402]
[1744366250499,1.28402,1558.5,1558.4,1.29366953]
[1744366250703,4.11822,1558.5,1558.4,0.00960953]
[1744366251598,9.11822,1558.5,1558.4,0.00960953]
[1744366251799,11.38992,1558.5,1558.4,0.00960953]
[1744366252395,6.38992,1558.5,1558.4,1.29371953]
[1744366252601,2.8342,1558.5,1558.4,1.29371953]
[1744366253604,4.11822,1558.5,1558.4,0.00960953]
[1744366255600,4.11822,1558.5,1558.4,1.29371953]
[1744366255795,2.8342,1558.5,1558.4,1.29371953]
[1744366256000,4.49176,1558.6,1558.5,1.28402]
[1744366256205,2.8451,1558.6,1558.5,1.28402]
[1744366256403,2.8451,1558.6,1558.5,4.05592]
[1744366256805,0.00960953,1558.7,1558.6,1.28394]
[1744366257201,2.85470953,1558.7,1558.6,1.28394]
[1744366257707,2.85470953,1558.7,1558.5,6.37116]
[1744366257907,4.13863953,1558.7,1558.6,1.28394]
[1744366259204,2.85470953,1558.7,1558.6,1.28394]
[1744366259801,0.00960953,1558.7,1558.6,1.28394]
[1744366260002,1.29346953,1558.7,1558.6,1.28394]
[1744366260206,4.00576953,1558.7,1558.6,1.28394]
[1744366260807,1.28394,1558.6,1558.5,1.28396]
[1744366261003,3.99624,1558.6,1558.5,1.28396]
[1744366261607,2.7123,1558.6,1558.5,1.28396]
[1744366261802,0.00960953,1558.7,1558.6,1.28394]
[1744366262005,0.00960953,1558.7,1558.6,11.68274]
[1744366262006,9.53e-06,1558.7,1558.6,11.68274]
[1744366262193,9.53e-06,1558.7,1558.6,16.68274]
[1744366262712,9.53e-06,1558.7,1558.6,57.48274]
[1744366263705,3.2078,1559.2,1559.1,1.28353]
[1744366263909,4.99772172,1559.3,1559.2,1.28345]
[1744366264104,4.99772172,1559.3,1559.2,6.38615]
[1744366265007,2.6018,1559.3,1559.2,6.38615]
[1744366265204,1.28345,1559.2,1559.1,6.22651]
[1744366265406,1.28353,1559.1,1559.0,1.28355]
[1744366265612,1.28352,1559.2,1559.1,1.28351]
[1744366265812,4.88,1559.3,1559.2,1.28345]
[1744366266407,6.16337,1559.3,1559.2,1.28345]
[1744366266714,1.28345,1559.2,1559.1,4.05055]
[1744366266908,2.6018,1559.2,1559.1,1.28345]
[1744366267109,0.00960953,1559.4,1559.3,1.28337]
[1744366267310,4.50068953,1559.4,1559.3,1.28337]
[1744366267508,3.21740953,1559.4,1559.3,1.28337]
[1744366267705,4.50068953,1559.4,1559.3,1.28337]
[1744366268016,7.10255953,1559.4,1559.3,1.28337]
[1744366269516,1.28337,1559.3,1559.2,0.00960953]
[1744366269718,3.99157,1559.3,1559.2,0.00960953]
[1744366270013,8.99157,1559.3,1559.2,0.00960953]
[1744366271612,12.19937,1559.3,1559.2,0.00960953]
[1744366272022,1.2837,1558.9,1558.8,6.15573]
[1744366272212,1.28378,1558.8,1558.7,1.28379]
[1744366272418,2.8658,1558.8,1558.5,2.8351]
[1744366272610,3.2078,1558.7,1558.6,1.28389]
[1744366272818,3.2078,1558.7,1558.6,42.08389]
[1744366273019,7.35746,1558.7,1558.6,42.08389]
[1744366273314,6.0736,1558.7,1558.6,42.08389]
[1744366273520,6.0736,1558.7,1558.5,2.84470953]
[1744366273521,1.28394,1558.6,1558.5,0.00960953]
[1744366273722,3.59254,1558.6,1558.5,0.00960953]
[1744366274016,1.28432,1558.2,1558.0,4.871]
[1744366274207,2.8614,1558.1,1558.0,1.28444]
[1744366275108,2.8614,1558.1,1558.0,3.89464]
[1744366276222,4.14575,1558.1,1558.0,1.28444]
[1744366276424,6.0692,1558.1,1558.0,1.28444]
[1744366276620,0.00960953,1558.2,1558.1,1.28435]
[1744366277217,2.71760953,1558.2,1558.1,1.28435]
[1744366277914,4.00187953,1558.2,1558.1,1.28435]
[1744366278112,1.28436,1558.1,1558.0,1.28438]
[1744366278324,3.99236,1558.1,1558.0,1.28438]
[1744366278722,1.28444,1558.0,1557.9,0.00960953]
[1744366279021,3.99244,1558.0,1557.9,0.00960953]
[1744366279223,2.708,1558.0,1557.9,1.29412953]
[1744366279725,2.708,1558.0,1557.9,3.90652953]
[1744366280029,1.29392953,1558.2,1558.1,1.28435]
[1744366280218,3.94362953,1558.2,1558.1,1.28435]
[1744366280526,1.28436,1558.1,1558.0,1.28438]
[1744366280818,1.28444,1558.0,1557.9,3.90645953]
[1744366281026,1.28444,1558.0,1557.9,1.29412953]
[1744366281323,1.28444,1558.0,1557.9,0.00960953]
[1744366281618,6.23524,1558.0,1557.9,0.00960953]
[1744366283020,11.23524,1558.0,1557.9,0.00960953]
[1744366283225,13.71134,1558.0,1557.9,0.00960953]
[1744366283726,8.71134,1558.0,1557.9,0.00960953]
[1744366285027,4.9508,1558.0,1557.9,1.29412953]
[1744366285323,2.6497,1558.0,1557.9,1.29412953]
[1744366286028,1.29393953,1558.2,1558.1,1.28435]
[1744366286330,0.00960953,1558.2,1558.1,1.28435]
[1744366287028,1.28435,1558.1,1558.0,4.04037]
[1744366287228,1.28435,1558.1,1558.0,1.28437]
[1744366287430,4.14935,1558.1,1558.0,1.28437]
[1744366287630,1.28444,1558.0,1557.9,1.29409953]
[1744366287829,4.14944,1558.0,1557.9,1.29409953]
[1744366288130,4.14944,1558.0,1557.9,0.00960953]
[1744366290325,1.2848,1557.6,1557.5,1.28478]
[1744366290630,4.4926,1557.6,1557.5,1.28478]
[1744366290935,3.2078,1557.6,1557.5,1.28478]
[1744366291234,2.8868,1557.7,1557.6,1.28477]
[1744366291530,3.2078,1557.8,1557.7,1.28468]
[1744366291732,2.8868,1557.9,1557.8,1.2846]
[1744366292131,4.17132,1557.9,1557.8,1.2846]
[1744366292333,1.28468,1557.7,1557.6,3.58111]
[1744366292737,7.11666,1557.8,1557.7,1.28468]
[1744366293129,5.832,1557.8,1557.7,1.28468]
[1744366293328,5.832,1557.8,1557.7,4.11308]
[1744366294528,5.832,1557.8,1557.7,1.28468]
[1744366294529,7.1166,1557.8,1557.7,1.28468]
[1744366295031,1.28468,1557.7,1557.6,6.4095]
[1744366295234,2.6242,1557.7,1557.6,6.4095]
[1744366295437,3.2078,1557.8,1557.7,1.28468]
[1744366295735,4.12065,1557.9,1557.8,1.2846]
[1744366295930,3.21158,1557.8,1557.4,2.4332]
[1744366296136,4.49262,1557.6,1557.5,1.28481]
[1744366296326,3.2078,1557.6,1557.5,1.28481]
[1744366296524,4.12081,1557.7,1557.6,1.28477]
[1744366297234,4.12078,1557.7,1557.6,1.28477]
[1744366297828,2.8361,1557.7,1557.6,1.28477]
[1744366298033,4.49245,1557.8,1557.7,1.28468]
[1744366298436,4.49245,1557.8,1557.7,4.04238]
[1744366299336,4.49245,1557.8,1557.7,1.28468]
[1744366299537,7.24865,1557.8,1557.7,1.28468]
[1744366299832,1.28473,1557.7,1557.6,1.2847]
[1744366300036,1.28477,1557.6,1557.5,4.04249]
[1744366300433,4.49257,1557.6,1557.5,1.28479]
[1744366300924,5.964,1557.6,1557.4,5.1909]
[1744366301124,5.964,1557.6,1557.4,1.28493]
[1744366301125,2.7562,1557.5,1557.4,1.28493]
[1744366301330,4.04113,1557.5,1557.4,1.28493]
[1744366301529,4.04113,1557.5,1557.4,4.07253]
[1744366302332,2.7562,1557.5,1557.4,4.07253]
[1744366302635,7.24885,1557.5,1557.4,1.28493]
[1744366303536,7.24885,1557.5,1557.4,4.07253]
[1744366303733,1.28481,1557.6,1557.4,2.7876]
[1744366304031,1.28481,1557.6,1557.5,2.7876]
[1744366304337,1.28485,1557.5,1557.4,1.28486]
[1744366304537,1.28493,1557.4,1557.3,6.22974]
[1744366304732,3.21234,1557.4,1557.1,3.56251]
[1744366304933,3.2129,1557.2,1556.8,4.49316]
[1744366305246,1.28534,1556.9,1556.8,3.90436]
[1744366305533,6.4207,1557.2,1556.8,5.83256]
[1744366305731,1.28526,1557.0,1556.9,2.619]
[1744366305928,1.28543,1556.8,1556.7,44.38356]
[1744366306124,3.2078,1556.8,1556.6,1.28556]
[1744366306328,1.28557,1556.7,1556.6,1.28556]
[1744366307136,1.28552,1556.7,1556.6,1.28552]
[1744366307332,4.49329,1556.8,1556.7,1.28551]
[1744366307541,3.2078,1556.8,1556.6,2.8696]
[1744366307731,4.49328,1556.8,1556.7,1.28551]
[1744366308142,3.2078,1556.8,1556.7,1.28551]
[1744366308439,1.28551,1556.7,1556.6,4.15512]
[1744366308737,1.28551,1556.7,1556.6,4.15513]
[1744366308934,1.28551,1556.7,1556.6,2.8696]
[1744366309327,1.28559,1556.6,1556.5,43.0805]
[1744366309532,1.28559,1556.6,1556.5,44.36617]
[1744366309728,1.28559,1556.6,1556.5,2.2805]
[1744366310536,1.28555,1556.7,1556.5,2.2805]
[1744366310738,1.28552,1556.7,1556.6,4.10573]
[1744366311134,6.42141,1556.8,1556.4,43.0908]
[1744366311341,4.49344,1556.6,1556.5,1.28567]
[1744366311634,3.2078,1556.6,1556.5,4.10587]
[1744366311835,1.28558,1556.7,1556.6,1.28559]
[1744366312036,4.49338,1556.7,1556.6,4.10579]
[1744366312232,3.2078,1556.7,1556.6,4.10579]
[1744366312539,4.49314,1556.9,1556.8,1.2854]
[1744366312733,3.2078,1556.9,1556.8,1.2854]
[1744366313136,4.49314,1556.9,1556.8,3.6855]
[1744366313334,4.49314,1556.9,1556.8,2.4001]
[1744366313536,3.2078,1556.9,1556.6,1.28554]
[1744366313843,1.28551,1556.7,1556.6,1.28554]
[1744366314343,1.28559,1556.6,1556.5,3.6857]
[1744366314841,1.28557,1556.7,1556.6,1.28555]
[1744366315037,1.28557,1556.7,1556.6,3.56885]
[1744366315749,3.2078,1556.9,1556.6,5.49727]
[1744366316044,4.4932,1556.9,1556.8,1.28543]
[1744366316341,1.2854,1556.9,1556.8,1.28543]
[1744366316944,1.28551,1556.7,1556.6,3.56882]
[1744366317240,1.28551,1556.8,1556.7,1.28547]
[1744366317444,2.8579,1556.8,1556.7,1.28547]
[1744366317642,4.4932,1556.9,1556.8,1.28543]
[1744366318241,6.42119,1556.9,1556.5,2.4001]
[1744366318446,1.28551,1556.7,1556.6,3.63459]
[1744366319146,3.2078,1556.9,1556.6,2.349]
[1744366319340,9.27911,1556.9,1556.6,2.349]
[1744366319547,6.0657,1556.9,1556.6,2.349]
[1744366319745,4.10528,1556.8,1556.7,1.28548]
[1744366321348,3.2078,1556.9,1556.8,1.28543]
[1744366321548,4.49314,1556.9,1556.8,1.28543]
[1744366322252,1.28548,1556.8,1556.7,1.28545]
[1744366322444,1.28551,1556.7,1556.6,8.43155]
[1744366322750,2.8198,1556.8,1556.7,1.28551]
[1744366323055,1.28549,1556.8,1556.7,1.28546]
[1744366323245,1.28559,1556.6,1556.5,3.68571]
[1744366324138,5.9049,1556.7,1556.5,3.68571]
[1744366324347,7.19046,1556.7,1556.6,1.28559]
[1744366324641,1.28559,1556.6,1556.5,3.68571]
[1744366324844,3.98269,1556.6,1556.5,3.68571]
[1744366325043,4.72809,1556.6,1556.5,3.72271]
[1744366325350,5.34699,1556.6,1556.5,0.037]
[1744366327650,5.34699,1556.6,1556.5,1.32267]
[1744366327851,5.34699,1556.6,1556.5,0.037]
[1744366328054,10.34699,1556.6,1556.5,0.037]
[1744366328746,1.286,1556.1,1556.0,3.60425]
[1744366329145,0.00960953,1556.2,1556.1,1.286]
[1744366329744,2.88900953,1556.2,1556.1,4.1411]
[1744366329944,4.17492953,1556.2,1556.1,4.1411]
[1744366330139,4.17492953,1556.2,1555.6,19.77335895]
[1744366330344,0.6432,1555.2,1554.5,39.53740163]
[1744366330545,4.49496,1554.7,1554.5,39.53740163]
[1744366330744,4.49496,1554.7,1554.5,48.66225507]
[1744366330945,4.49496,1554.7,1554.6,43.69262682]
[1744366331543,3.2078,1554.7,1554.6,43.69262682]
[1744366331950,3.59043911,1554.7,1554.6,43.69262682]
[1744366332446,7.55389911,1554.7,1554.6,43.69262682]
[1744366333046,6.26673911,1554.7,1554.6,46.30352682]
[1744366333852,3.59043911,1554.7,1554.6,66.81533232]
[1744366334049,3.2078,1554.7,1554.6,65.52808232]
[1744366334249,3.2078,1554.7,1554.6,46.30352682]
[1744366334947,4.49496,1554.7,1554.6,65.52808232]
[1744366335848,3.2078,1554.7,1554.6,65.52808232]
[1744366336045,5.00736244,1555.1,1554.6,7.6109]
[1744366336354,7.72096244,1555.1,1554.7,3.99201]
[1744366336549,1.28701,1554.9,1554.8,5.49]
[1744366337049,1.28701,1554.9,1554.8,26.5067555]
[1744366337249,1.28701,1554.9,1554.8,21.5067555]
[1744366337549,1.28701,1554.9,1554.8,26.5067555]
[1744366338154,1.28701,1554.9,1554.8,21.5067555]
[1744366338451,1.28701,1554.9,1554.8,5.49]
[1744366338657,4.04001,1554.9,1554.8,5.49]
[1744366338958,2.753,1554.9,1554.4,48.5848]
[1744366339151,1.28725,1554.6,1554.5,2.6618]
[1744366339549,1.28725,1554.6,1554.5,18.6785555]
[1744366339756,1.28725,1554.6,1554.5,19.9658855]
[1744366340056,1.28725,1554.6,1554.5,18.6785555]
[1744366340356,1.28725,1554.6,1554.5,19.9658855]
[1744366340654,2.753,1554.9,1554.7,1.28715]
[1744366340854,4.04,1554.9,1554.8,2.6618]
[1744366341756,1.287,1554.9,1554.8,2.6618]
[1744366341955,0.00964072,1555.1,1554.8,10.8696]
[1744366342147,1.28691,1555.0,1554.9,4.10417]
[1744366342461,1.28691,1555.0,1554.9,2.8172]
[1744366342657,0.00964072,1555.1,1554.8,1.28704]
[1744366342855,1.287,1554.9,1554.8,4.10424]
[1744366343055,4.49478,1555.0,1554.9,1.287]
[1744366343856,4.49478,1555.0,1554.9,17.3037555]
[1744366344160,1.287,1554.9,1554.8,3.73415]
[1744366344360,1.29649072,1555.1,1555.0,1.28691]
[1744366344561,1.29649072,1555.1,1555.0,6.77791]
[1744366345156,1.29649072,1555.1,1555.0,22.7946655]
[1744366345365,1.29649072,1555.1,1555.0,17.15456104]
[1744366345658,1.29649072,1555.1,1555.0,18.44147104]
[1744366345859,0.00964072,1555.1,1555.0,18.44147104]
[1744366346056,1.29647072,1555.1,1555.0,18.44147104]
[1744366346363,0.00964072,1555.1,1555.0,18.44147104]
[1744366346660,1.29647072,1555.1,1555.0,18.44147104]
[1744366347665,1.29647072,1555.1,1555.0,17.15456104]
[1744366347962,1.29647072,1555.1,1555.0,18.44147104]
[1744366348161,0.00964072,1555.1,1555.0,2.42471554]
[1744366348665,0.00964072,1555.1,1555.0,7.82873537]
[1744366348863,0.00964072,1555.1,1555.0,7.42471554]
[1744366349568,0.00964072,1555.1,1555.0,23.44147104]
[1744366349762,3.21612,1555.6,1555.1,3.21694]
[1744366350066,1.28657,1555.5,1555.4,4.49436]
[1744366350259,1.28657,1555.5,1555.4,9.98536]
[1744366350456,1.28657,1555.5,1555.4,15.71706478]
[1744366350661,1.28657,1555.5,1555.4,17.00364478]
[1744366350863,0.00964072,1555.6,1555.4,15.71706478]
[1744366351067,1.2865,1555.5,1555.4,9.98533]
[1744366351366,1.2865,1555.5,1555.4,8.6988]
[1744366351767,1.29614072,1555.6,1555.5,1.2865]
[1744366352365,1.29606072,1555.6,1555.5,1.2865]
[1744366352571,1.29606072,1555.6,1555.5,49.10476478]
[1744366353666,0.00964072,1555.6,1555.5,49.10476478]
[1744366353966,1.29606072,1555.6,1555.5,42.0865]
[1744366354172,4.99772172,1556.1,1555.7,3.2158]
[1744366354465,1.66743778,1556.0,1555.9,3.2078]
[1744366354671,1.28613,1556.0,1555.9,3.2078]
[1744366354873,4.31064463,1556.0,1555.9,3.2078]
[1744366355267,1.28617,1555.9,1555.8,3.2078]
[1744366355470,4.31086298,1555.9,1555.8,3.2078]
[1744366355869,4.31085137,1555.9,1555.8,3.2078]
[1744366356373,4.92965137,1555.9,1555.8,3.2078]
[1744366356575,4.92965137,1555.9,1555.8,6.0128]
[1744366356769,4.54817,1555.9,1555.8,6.0128]
[1744366356974,4.54817,1555.9,1555.8,7.29905]
[1744366357274,4.89707453,1555.9,1555.8,7.29905]
[1744366357473,0.96770453,1555.9,1555.8,7.29905]
[1744366357774,0.6188,1555.9,1555.8,7.29905]
[1744366359077,0.00964072,1556.1,1556.0,1.28609]
[1744366359270,0.00964072,1556.1,1556.0,9.98389]
[1744366359470,0.00964072,1556.1,1556.0,12.69269]
[1744366359865,0.00964072,1556.1,1556.0,19.71095478]
[1744366361485,1.29564072,1556.1,1556.0,19.71095478]
[1744366361678,4.02414072,1556.1,1556.0,19.71095478]
[1744366362182,0.00964072,1556.1,1556.0,19.71095478]
[1744366362385,0.75614072,1556.1,1556.0,19.71095478]
[1744366363285,0.75614072,1556.1,1556.0,12.69269]
[1744366363787,0.75614072,1556.1,1556.0,19.71095478]
[1744366364377,0.75614072,1556.1,1556.0,12.69269]
[1744366365093,0.75614072,1556.1,1556.0,13.11075762]
[1744366365387,0.75614072,1556.1,1556.0,12.69269]
[1744366365582,0.75614072,1556.1,1556.0,19.71095478]
[1744366365988,0.75614072,1556.1,1556.0,17.69269]
[1744366366889,0.75614072,1556.1,1556.0,24.71095478]
[1744366367489,0.75614072,1556.1,1556.0,25.12159375]
[1744366369183,0.72731213,1556.1,1556.0,18.10332897]
[1744366369385,1.28594,1556.2,1556.1,1.286]
[1744366369590,1.286,1556.1,1556.0,12.69264]
[1744366370685,1.286,1556.1,1556.0,9.98389]
[1744366370891,4.02702072,1556.2,1556.1,1.286]
[1744366371091,0.00964072,1556.2,1556.1,4.0876]
[1744366371890,0.00964072,1556.2,1556.1,11.10586478]
[1744366372382,7.4922994,1556.8,1556.7,1.28551]
[1744366372686,7.47924861,1556.8,1556.7,4.49331]
[1744366372992,16.85566672,1556.8,1556.7,44.0078]
[1744366373489,15.57023672,1556.8,1556.7,4.49331]
[1744366373785,11.50647861,1556.8,1556.7,4.49331]
[1744366373986,7.47924861,1556.8,1556.7,45.29331]
[1744366374298,9.41579902,1557.1,1557.0,1.28526]
[1744366374596,9.41579902,1557.1,1557.0,3.76596]
[1744366375399,9.41579902,1557.1,1557.0,3.2078]
[1744366375586,9.41579902,1557.1,1557.0,4.49306]
[1744366375782,12.07139902,1557.1,1557.0,4.49306]
[1744366376594,13.70565166,1557.1,1557.0,3.2078]
[1744366376788,12.07139902,1557.1,1557.0,4.49306]
[1744366377497,3.94078,1557.1,1557.0,3.2078]
[1744366377895,3.94078,1557.1,1557.0,4.49306]
[1744366378096,1.28526,1557.0,1556.9,0.00964072]
[1744366378297,4.30690528,1557.0,1556.9,3.21744072]
[1744366378493,9.30690528,1557.0,1556.9,0.00964072]
[1744366379896,9.30690528,1557.0,1556.9,7.2e-07]
[1744366380195,1.28576,1556.4,1556.3,4.49359]
[1744366380398,1.28576,1556.4,1556.3,45.28053921]
[1744366380599,1.63492207,1556.4,1556.3,3.19474921]
[1744366380898,1.63492207,1556.4,1556.3,4.48058921]
[1744366381300,1.63514201,1556.4,1556.3,4.48058921]
[1744366381598,3.74814,1556.6,1556.5,1.28567]
[1744366381900,4.09751159,1556.6,1556.5,4.49347]
[1744366382193,2.81192159,1556.6,1556.5,4.49347]
[1744366382492,4.09751159,1556.6,1556.5,45.29347]
[1744366382697,9.09751159,1556.6,1556.5,40.8]
[1744366383094,9.09767361,1556.6,1556.5,40.8]
[1744366383493,1.28576,1556.4,1556.3,3.2078]
[1744366383798,1.28584,1556.3,1556.2,1.29552072]
[1744366383998,4.27102361,1556.3,1556.2,42.09552072]
[1744366384301,4.27102361,1556.3,1556.2,0.00964072]
[1744366384800,4.27129325,1556.3,1556.2,0.00964072]
[1744366385394,7.98545325,1556.3,1555.9,3.2078]
[1744366385594,1.28603,1556.1,1556.0,1.28601]
[1744366385794,1.63588325,1556.1,1556.0,1.28601]
[1744366386298,0.34985325,1556.1,1556.0,1.28601]
[1744366386497,3.9215,1556.3,1556.2,1.28592]
[1744366386693,2.98562277,1556.3,1556.2,4.49372]
[1744366386893,4.27146277,1556.3,1556.2,3.2078]
[1744366387095,0.35002277,1556.3,1556.2,4.49372]
[1744366387298,0.00964072,1556.4,1556.3,1.28584]
[1744366387500,0.00964072,1556.4,1556.3,9.27814]
[1744366388096,4.83,1556.9,1556.4,3.21433]
[1744366388294,2.84,1556.7,1556.6,1.28559]
[1744366388491,3.19030191,1556.7,1556.6,8.5058]
[1744366388699,4.47581191,1556.7,1556.6,8.5058]
[1744366389202,4.47581191,1556.7,1556.6,3.2078]
[1744366389701,0.00964072,1556.8,1556.7,1.28551]
[1744366389903,1.28551,1556.7,1556.6,9.79133]
[1744366390097,1.28551,1556.7,1556.6,3.19474921]
[1744366393499,2.75274072,1556.8,1556.4,4.49353]
[1744366393700,4.11817,1556.6,1556.4,4.49353]
[1744366394005,1.28567,1556.5,1556.4,4.49353]
[1744366394205,4.11817,1556.5,1556.4,4.49353]
[1744366394398,2.8325,1556.5,1556.4,4.49353]
[1744366394597,4.11817,1556.5,1556.4,3.2078]
[1744366395203,1.28584,1556.3,1556.2,6.88425]
[1744366395507,1.2858,1556.4,1556.3,1.28578]
[1744366396405,4.11823,1556.5,1556.4,1.28576]
[1744366396711,1.28573,1556.5,1556.4,1.28576]
[1744366397007,1.2858,1556.4,1556.3,1.28577]
[1744366398503,1.28584,1556.3,1556.2,6.88425]
[1744366399004,1.286,1556.1,1556.0,3.2078]
[1744366399899,1.286,1556.1,1556.0,4.49389]
[1744366400602,1.286,1556.1,1556.0,3.2078]
[1744366401806,1.63613243,1556.1,1556.0,3.2078]
[1744366402306,6.63609762,1556.1,1556.0,3.2078]
[1744366403111,1.28609,1556.0,1555.9,0.00964072]
[1744366403411,1.63618762,1556.0,1555.9,0.00964072]
[1744366403601,8.91688762,1556.0,1555.9,0.00964072]
[1744366403907,8.91655918,1556.0,1555.9,0.00964072]
[1744366406704,3.91655918,1556.0,1555.9,0.00964072]
[1744366408011,7.12435918,1556.0,1555.9,0.00964072]
[1744366409513,8.08892674,1556.0,1555.9,0.00964072]
[1744366409911,4.88112674,1556.0,1555.9,0.00964072]
[1744366410708,2.60042674,1556.0,1555.9,4.50361072]
[1744366410914,1.31433674,1556.0,1555.9,9.50361072]
[1744366411312,1.31433674,1556.0,1555.9,19.89491072]
[1744366411509,0.96456756,1556.0,1555.9,19.89491072]
[1744366412316,1.31481708,1556.0,1555.9,19.89491072]
[1744366413113,0.35024952,1556.0,1555.9,19.89491072]
[1744366413415,0.35024952,1556.0,1555.9,14.89491072]
[1744366413717,1.28606,1556.1,1556.0,1.28609]
[1744366414013,1.63622611,1556.1,1556.0,6.26829]
[1744366414517,1.28592,1556.2,1556.1,1.28599]
[1744366414717,1.63610069,1556.2,1556.1,4.49379]
[1744366415120,1.63610069,1556.2,1556.1,45.29379]
[1744366415910,1.63610069,1556.2,1556.1,44.0078]
[1744366416215,1.63610069,1556.2,1556.1,45.2938]
[1744366416615,0.35018069,1556.2,1556.1,45.2938]
[1744366416915,0.35018069,1556.2,1556.1,4.4938]
[1744366417713,1.63610069,1556.2,1556.1,3.2078]
[1744366417917,1.286,1556.1,1556.0,3.50039]
[1744366418218,1.63618069,1556.1,1556.0,3.50039]
[1744366419618,1.63618069,1556.1,1556.0,2.2143]
[1744366419814,4.0551,1556.1,1556.0,2.2143]
[1744366420021,1.28609,1556.0,1555.9,5.63414072]
[1744366420218,1.63644178,1556.0,1555.9,3.21744072]
[1744366420519,4.40554178,1556.0,1555.9,0.00964072]
[1744366423317,4.40554178,1556.0,1555.9,1.29581072]
[1744366423621,1.63683612,1556.0,1555.9,4.50361072]
[1744366424315,1.63683612,1556.0,1555.9,6.89341072]
[1744366425330,0.35074612,1556.0,1555.9,6.89341072]
[1744366425713,0.3509467,1556.0,1555.9,5.60724072]
[1744366426014,0.3509467,1556.0,1555.9,6.89341072]
[1744366426419,0.3509467,1556.0,1555.9,9.57171072]
[1744366426821,0.3509467,1556.0,1555.9,14.57171072]
[1744366427123,9.99430843,1556.4,1556.3,1.28584]
[1744366427420,11.63122012,1556.4,1556.3,1.28584]
[1744366427619,11.63122012,1556.4,1556.3,6.20564]
[1744366427820,11.63122012,1556.4,1556.3,8.52674]
[1744366428322,11.63122012,1556.4,1556.3,7.2409]
[1744366428917,11.63122012,1556.4,1556.3,8.52674]
[1744366429826,10.34540012,1556.4,1556.3,8.52674]
[1744366430119,11.63116012,1556.4,1556.3,8.52674]
[1744366430326,11.63116012,1556.4,1556.3,7.2409]
[1744366430618,14.19596012,1556.4,1556.3,8.52674]
[1744366430827,14.19593855,1556.4,1556.3,8.52674]
[1744366431532,4.20171983,1556.4,1556.3,8.52674]
[1744366431826,1.63691983,1556.4,1556.3,8.52674]
[1744366432327,0.35115983,1556.4,1556.3,8.52674]
[1744366432624,0.35130134,1556.4,1556.3,1.28584]
[1744366432827,1.28584,1556.3,1556.2,8.2728]
[1744366433027,1.63714134,1556.3,1556.2,8.2728]
[1744366433225,4.40284134,1556.3,1556.2,4.49372]